[Event "*** Titled Tuesday Blitz"]
[Site "Chess.com"]
[Date "2020.05.26"]
[Round "4"]
[White "kingofthenil"]
[Black "CyberdelChess"]
[Result "1-0"]
[WhiteElo "2442"]
[BlackElo "2259"]
[TimeControl "180+1"]
[EndTime "10:41:09 PDT"]
[Termination "kingofthenil won by checkmate"]

1. e4 {[%clk 0:03:00.9]} 1... c5 {[%clk 0:02:59.4]} 2. d3 {[%clk 0:03:00.6]}
2... Nc6 {[%clk 0:02:57.5]} 3. g3 {[%clk 0:03:01.5]} 3... g6 {[%clk 0:02:57.2]}
4. Bg2 {[%clk 0:03:02.4]} 4... Bg7 {[%clk 0:02:57.9]} 5. f4 {[%clk 0:03:03.2]}
5... d6 {[%clk 0:02:58.1]} 6. Nf3 {[%clk 0:03:04.1]} 6... e5 {[%clk 0:02:52.5]}
7. O-O {[%clk 0:03:00.9]} 7... Nge7 {[%clk 0:02:51.8]} 8. Nc3 {[%clk 0:03:00.3]}
8... O-O {[%clk 0:02:51.4]} 9. f5 {[%clk 0:02:59.3]} 9... gxf5 {[%clk
0:02:50.7]} 10. Nh4 {[%clk 0:02:59.4]} 10... fxe4 {[%clk 0:02:49.5]} 11. dxe4
{[%clk 0:02:55.2]} 11... Nd4 {[%clk 0:02:46.8]} 12. Qh5 {[%clk 0:02:51.8]} 12...
Qe8 {[%clk 0:02:39.5]} 13. Nf5 {[%clk 0:02:43.9]} 13... Ndxf5 {[%clk 0:02:14.3]}
14. exf5 {[%clk 0:02:44.8]} 14... f6 {[%clk 0:02:14.6]} 15. Qh3 {[%clk
0:01:38.3]} 15... Qf7 {[%clk 0:02:01.2]} 16. Ne4 {[%clk 0:01:29.5]} 16... Rd8
{[%clk 0:01:51.9]} 17. g4 {[%clk 0:01:21.1]} 17... d5 {[%clk 0:01:42.7]} 18.
Nxc5 {[%clk 0:01:19.7]} 18... b6 {[%clk 0:01:41.2]} 19. Ne6 {[%clk 0:01:13]}
19... Bxe6 {[%clk 0:01:39.4]} 20. fxe6 {[%clk 0:01:13.9]} 20... Qxe6 {[%clk
0:01:39.7]} 21. c4 {[%clk 0:01:13.6]} 21... Rac8 {[%clk 0:01:37.8]} 22. cxd5
{[%clk 0:01:14.5]} 22... Nxd5 {[%clk 0:01:38.2]} 23. Bd2 {[%clk 0:00:57.6]}
23... Rc2 {[%clk 0:01:35.1]} 24. Rad1 {[%clk 0:00:54.5]} 24... Rdc8 {[%clk
0:01:01]} 25. Bg5 {[%clk 0:00:46.2]} 25... Ne7 {[%clk 0:00:58.9]} 26. Bh4 {[%clk
0:00:35.3]} 26... Kh8 {[%clk 0:00:55.6]} 27. Bg3 {[%clk 0:00:23.1]} 27... Ng6
{[%clk 0:00:53.2]} 28. Be4 {[%clk 0:00:22.6]} 28... Nf8 {[%clk 0:00:40.4]} 29.
Bxc2 {[%clk 0:00:19.4]} 29... Rxc2 {[%clk 0:00:41.3]} 30. Rf2 {[%clk 0:00:19.4]}
30... Rxf2 {[%clk 0:00:39.6]} 31. Bxf2 {[%clk 0:00:20.3]} 31... Qxa2 {[%clk
0:00:39.9]} 32. Qa3 {[%clk 0:00:14.3]} 32... Qe6 {[%clk 0:00:38.5]} 33. h3
{[%clk 0:00:11.2]} 33... h5 {[%clk 0:00:38]} 34. Qf3 {[%clk 0:00:10.6]} 34...
hxg4 {[%clk 0:00:36.9]} 35. hxg4 {[%clk 0:00:11.5]} 35... a5 {[%clk 0:00:36.8]}
36. Kg2 {[%clk 0:00:11.2]} 36... Kg8 {[%clk 0:00:36.7]} 37. Qf5 {[%clk
0:00:10.7]} 37... Kf7 {[%clk 0:00:37.2]} 38. Qxe6+ {[%clk 0:00:09.1]} 38... Kxe6
{[%clk 0:00:38.1]} 39. Bxb6 {[%clk 0:00:08.8]} 39... a4 {[%clk 0:00:37.2]} 40.
Bc5 {[%clk 0:00:08.1]} 40... Ng6 {[%clk 0:00:37.3]} 41. Be3 {[%clk 0:00:06.9]}
41... Ne7 {[%clk 0:00:37.1]} 42. Ra1 {[%clk 0:00:07.2]} 42... f5 {[%clk
0:00:36.8]} 43. gxf5+ {[%clk 0:00:04.5]} 43... Nxf5 {[%clk 0:00:37.7]} 44. Bf2
{[%clk 0:00:04.9]} 44... e4 {[%clk 0:00:38]} 45. Rxa4 {[%clk 0:00:05]} 45...
Bxb2 {[%clk 0:00:38.5]} 46. Rxe4+ {[%clk 0:00:05.6]} 46... Kf6 {[%clk
0:00:38.9]} 47. Rb4 {[%clk 0:00:04.3]} 47... Be5 {[%clk 0:00:39.1]} 48. Kf3
{[%clk 0:00:03.4]} 48... Nd6 {[%clk 0:00:39.2]} 49. Rb6 {[%clk 0:00:03.2]} 49...
Ke6 {[%clk 0:00:39.5]} 50. Rb8 {[%clk 0:00:02.8]} 50... Kd5 {[%clk 0:00:39.8]}
51. Rg8 {[%clk 0:00:02.5]} 51... Ke6 {[%clk 0:00:39.9]} 52. Rg1 {[%clk 0:00:03]}
52... Kd5 {[%clk 0:00:40.3]} 53. Re1 {[%clk 0:00:03.4]} 53... Ke6 {[%clk
0:00:40.7]} 54. Bg3 {[%clk 0:00:03.6]} 54... Nf7 {[%clk 0:00:41]} 55. Kg4 {[%clk
0:00:02.5]} 55... Kd5 {[%clk 0:00:41.1]} 56. Rd1+ {[%clk 0:00:02.1]} 56... Ke4
{[%clk 0:00:40.6]} 57. Bh4 {[%clk 0:00:01.9]} 57... Nd6 {[%clk 0:00:40.2]} 58.
Re1+ {[%clk 0:00:01.9]} 58... Kd5 {[%clk 0:00:40.6]} 59. Kf3 {[%clk 0:00:02.5]}
59... Nf5 {[%clk 0:00:40.2]} 60. Bg5 {[%clk 0:00:02.1]} 60... Nd6 {[%clk
0:00:40]} 61. Kg4 {[%clk 0:00:02.4]} 61... Ne4 {[%clk 0:00:39.4]} 62. Rd1+
{[%clk 0:00:03.3]} 62... Ke6 {[%clk 0:00:39.1]} 63. Be3 {[%clk 0:00:03.2]} 63...
Nd6 {[%clk 0:00:38.8]} 64. Rb1 {[%clk 0:00:01.7]} 64... Kd5 {[%clk 0:00:39.1]}
65. Bd2 {[%clk 0:00:01.8]} 65... Ke6 {[%clk 0:00:38.6]} 66. Rd1 {[%clk
0:00:02.7]} 66... Kf6 {[%clk 0:00:38.2]} 67. Bb4 {[%clk 0:00:03.1]} 67... Ke6
{[%clk 0:00:38.2]} 68. Kf3 {[%clk 0:00:03.6]} 68... Nf5 {[%clk 0:00:37.8]} 69.
Ke4 {[%clk 0:00:03.2]} 69... Nd6+ {[%clk 0:00:38.1]} 70. Kd3 {[%clk 0:00:03.1]}
70... Kd5 {[%clk 0:00:38.1]} 71. Ba3 {[%clk 0:00:02]} 71... Ke6 {[%clk 0:00:39]}
72. Kc2 {[%clk 0:00:01.7]} 72... Ne4 {[%clk 0:00:38.1]} 73. Bb4 {[%clk
0:00:01.7]} 73... Nd6 {[%clk 0:00:38.2]} 74. Re1 {[%clk 0:00:01.7]} 74... Kd5
{[%clk 0:00:38.3]} 75. Kb3 {[%clk 0:00:02.5]} 75... Ne4 {[%clk 0:00:38.2]} 76.
Rd1+ {[%clk 0:00:03.4]} 76... Ke6 {[%clk 0:00:38]} 77. Kc4 {[%clk 0:00:03.7]}
77... Nd6+ {[%clk 0:00:37.7]} 78. Kc5 {[%clk 0:00:03.5]} 78... Ne4+ {[%clk
0:00:37.7]} 79. Kc6 {[%clk 0:00:03.3]} 79... Nf6 {[%clk 0:00:38.1]} 80. Re1
{[%clk 0:00:03]} 80... Kf5 {[%clk 0:00:38.6]} 81. Bd2 {[%clk 0:00:03]} 81... Ne4
{[%clk 0:00:38.1]} 82. Be3 {[%clk 0:00:02.4]} 82... Nf6 {[%clk 0:00:37.9]} 83.
Re2 {[%clk 0:00:01.9]} 83... Ke6 {[%clk 0:00:38.3]} 84. Bd2 {[%clk 0:00:01.3]}
84... Kf5 {[%clk 0:00:38.5]} 85. Be3 {[%clk 0:00:01.5]} 85... Ne4 {[%clk
0:00:37.6]} 86. Re1 {[%clk 0:00:01.1]} 86... Nc3 {[%clk 0:00:37.3]} 87. Rf1+
{[%clk 0:00:01.5]} 87... Ke4 {[%clk 0:00:37.3]} 88. Bd2 {[%clk 0:00:02.4]} 88...
Ne2 {[%clk 0:00:36.4]} 89. Re1 {[%clk 0:00:02.2]} 89... Kd3 {[%clk 0:00:36.9]}
90. Ba5 {[%clk 0:00:02.7]} 90... Bg3 {[%clk 0:00:37.4]} 91. Rd1+ {[%clk
0:00:02.9]} 91... Kc2 {[%clk 0:00:37.4]} 92. Rd5 {[%clk 0:00:03.2]} 92... Nc3
{[%clk 0:00:34.6]} 93. Rc5 {[%clk 0:00:02.8]} 93... Be1 {[%clk 0:00:34.8]} 94.
Bxc3 {[%clk 0:00:02.8]} 94... Bxc3 {[%clk 0:00:35.4]} 95. Kd5 {[%clk 0:00:03.7]}
95... Kd3 {[%clk 0:00:35.8]} 96. Rc4 {[%clk 0:00:04.6]} 96... Bb2 {[%clk
0:00:32.9]} 97. Re4 {[%clk 0:00:05.5]} 97... Bc3 {[%clk 0:00:33.1]} 98. Re6
{[%clk 0:00:06.4]} 98... Bb2 {[%clk 0:00:33.5]} 99. Rg6 {[%clk 0:00:07.3]} 99...
Bc3 {[%clk 0:00:33.8]} 100. Rg3+ {[%clk 0:00:07.7]} 100... Kc2 {[%clk
0:00:34.3]} 101. Kc4 {[%clk 0:00:07.6]} 101... Bb2 {[%clk 0:00:32.8]} 102. Rg2+
{[%clk 0:00:07.8]} 102... Kb1 {[%clk 0:00:33.2]} 103. Kb3 {[%clk 0:00:07.4]}
103... Bc1 {[%clk 0:00:32.5]} 104. Rg1 {[%clk 0:00:07.2]} 104... Ka1 {[%clk
0:00:27.4]} 105. Rxc1# {[%clk 0:00:08.1]} 1-0

[Event "*** Titled Tuesday Blitz"]
[Site "Chess.com"]
[Date "2020.05.26"]
[Round "4"]
[White "ErikBlomqvist"]
[Black "BEEkhishig"]
[Result "1/2-1/2"]
[WhiteElo "2444"]
[BlackElo "2603"]
[TimeControl "180+1"]
[EndTime "10:42:45 PDT"]
[Termination "Game drawn by repetition"]

1. e4 {[%clk 0:03:00.9]} 1... c6 {[%clk 0:02:59.8]} 2. d4 {[%clk 0:02:58.6]}
2... d5 {[%clk 0:03:00.7]} 3. exd5 {[%clk 0:02:59.5]} 3... cxd5 {[%clk
0:03:00.9]} 4. c4 {[%clk 0:03:00]} 4... Nf6 {[%clk 0:03:01.3]} 5. Nc3 {[%clk
0:02:59.8]} 5... Nc6 {[%clk 0:03:00.7]} 6. Bf4 {[%clk 0:02:58.9]} 6... e6 {[%clk
0:02:58.9]} 7. c5 {[%clk 0:02:55.9]} 7... Be7 {[%clk 0:02:58.3]} 8. Bb5 {[%clk
0:02:55.9]} 8... O-O {[%clk 0:02:58.3]} 9. Bxc6 {[%clk 0:02:53.6]} 9... bxc6
{[%clk 0:02:58.1]} 10. Nf3 {[%clk 0:02:47.3]} 10... Ba6 {[%clk 0:02:57.6]} 11.
Qa4 {[%clk 0:02:44.8]} 11... Qc8 {[%clk 0:02:57]} 12. Ne5 {[%clk 0:02:45.1]}
12... Bb7 {[%clk 0:02:52.2]} 13. O-O {[%clk 0:02:42.5]} 13... Nd7 {[%clk
0:02:51.3]} 14. Nxd7 {[%clk 0:02:33.8]} 14... Qxd7 {[%clk 0:02:52.2]} 15. Rfe1
{[%clk 0:02:33.4]} 15... a5 {[%clk 0:02:47.8]} 16. Qc2 {[%clk 0:02:29.1]} 16...
Ba6 {[%clk 0:02:36.1]} 17. Na4 {[%clk 0:02:26.8]} 17... Ra7 {[%clk 0:02:14.3]}
18. Qd2 {[%clk 0:02:09.6]} 18... Bf6 {[%clk 0:02:02.1]} 19. Be5 {[%clk 0:02:00]}
19... Bd8 {[%clk 0:01:56.5]} 20. Rac1 {[%clk 0:01:54.6]} 20... Qb7 {[%clk
0:01:50.4]} 21. Nb6 {[%clk 0:01:30]} 21... a4 {[%clk 0:01:35.8]} 22. Rc3 {[%clk
0:01:08.9]} 22... Re8 {[%clk 0:01:31.2]} 23. Rg3 {[%clk 0:00:38.8]} 23... f6
{[%clk 0:01:20.3]} 24. Bd6 {[%clk 0:00:39.2]} 24... Bb5 {[%clk 0:01:13.4]} 25.
h4 {[%clk 0:00:38.5]} 25... Qf7 {[%clk 0:01:04]} 26. Qb4 {[%clk 0:00:26.1]}
26... Ra6 {[%clk 0:00:49.3]} 27. Qd2 {[%clk 0:00:14.7]} 27... Bxb6 {[%clk
0:00:38.5]} 28. cxb6 {[%clk 0:00:15.6]} 28... Rxb6 {[%clk 0:00:39.4]} 29. b4
{[%clk 0:00:13.2]} 29... axb3 {[%clk 0:00:33.9]} 30. axb3 {[%clk 0:00:12.4]}
30... Ra6 {[%clk 0:00:34.1]} 31. Qf4 {[%clk 0:00:08.9]} 31... Rea8 {[%clk
0:00:31.9]} 32. Rge3 {[%clk 0:00:08.8]} 32... Ra1 {[%clk 0:00:30.2]} 33. Kh2
{[%clk 0:00:08.5]} 33... Rxe1 {[%clk 0:00:29.7]} 34. Rxe1 {[%clk 0:00:09.4]}
34... h5 {[%clk 0:00:28.1]} 35. Qe3 {[%clk 0:00:07.7]} 35... Re8 {[%clk
0:00:26.9]} 36. Qg3 {[%clk 0:00:07.4]} 36... Kh7 {[%clk 0:00:26.1]} 37. Ra1
{[%clk 0:00:07.5]} 37... Qg6 {[%clk 0:00:21.9]} 38. Ra7 {[%clk 0:00:06]} 38...
Qxg3+ {[%clk 0:00:18.8]} 39. Kxg3 {[%clk 0:00:06.9]} 39... e5 {[%clk 0:00:17.2]}
40. dxe5 {[%clk 0:00:02.8]} 40... fxe5 {[%clk 0:00:18.1]} 41. Re7 {[%clk
0:00:03.2]} 41... Rxe7 {[%clk 0:00:15.3]} 42. Bxe7 {[%clk 0:00:04.1]} 42... Kg6
{[%clk 0:00:16.2]} 43. b4 {[%clk 0:00:04]} 43... Kf5 {[%clk 0:00:15.1]} 44. Kf3
{[%clk 0:00:04.2]} 44... d4 {[%clk 0:00:13.5]} 45. Bc5 {[%clk 0:00:03.2]} 45...
Bc4 {[%clk 0:00:13.3]} 46. g3 {[%clk 0:00:02.6]} 46... Bd5+ {[%clk 0:00:11.5]}
47. Ke2 {[%clk 0:00:02.7]} 47... g6 {[%clk 0:00:09.9]} 48. Kd2 {[%clk
0:00:02.6]} 48... Bf3 {[%clk 0:00:09.6]} 49. Kd3 {[%clk 0:00:02.5]} 49... Ke6
{[%clk 0:00:09]} 50. Kd2 {[%clk 0:00:02.9]} 50... Kd5 {[%clk 0:00:09.1]} 51. Kd3
{[%clk 0:00:03.1]} 51... e4+ {[%clk 0:00:07.8]} 52. Kd2 {[%clk 0:00:03.6]} 52...
Kc4 {[%clk 0:00:08.7]} 53. Bd6 {[%clk 0:00:03.4]} 53... Kd5 {[%clk 0:00:08.1]}
54. Bc5 {[%clk 0:00:02.1]} 54... Bg4 {[%clk 0:00:09]} 55. Be7 {[%clk 0:00:02.1]}
55... Bf5 {[%clk 0:00:09.1]} 56. Bc5 {[%clk 0:00:02.6]} 56... Bd7 {[%clk
0:00:09.3]} 57. Bf8 {[%clk 0:00:03.1]} 57... Ke5 {[%clk 0:00:10.2]} 58. Bc5
{[%clk 0:00:04]} 58... Be6 {[%clk 0:00:11.1]} 59. Be7 {[%clk 0:00:04.3]} 59...
d3 {[%clk 0:00:11.4]} 60. Bc5 {[%clk 0:00:05.2]} 60... Bc4 {[%clk 0:00:11.9]}
61. Ke3 {[%clk 0:00:05.7]} 61... Bb5 {[%clk 0:00:12.8]} 62. Be7 {[%clk
0:00:05.8]} 62... Kd5 {[%clk 0:00:13.7]} 63. Bc5 {[%clk 0:00:06.5]} 63... Kc4
{[%clk 0:00:14.6]} 64. Kd2 {[%clk 0:00:07.4]} 64... Kb3 {[%clk 0:00:14.3]} 65.
Bd6 {[%clk 0:00:07.8]} 65... Ka4 {[%clk 0:00:14.4]} 66. Bc5 {[%clk 0:00:08.7]}
66... Bc4 {[%clk 0:00:14.5]} 67. Bd6 {[%clk 0:00:09.6]} 67... Bd5 {[%clk
0:00:15.4]} 68. Bc5 {[%clk 0:00:10.5]} 68... Kb5 {[%clk 0:00:15.8]} 69. Bd6
{[%clk 0:00:11.4]} 69... Kc4 {[%clk 0:00:16.7]} 70. Bc5 {[%clk 0:00:12.3]} 70...
Be6 {[%clk 0:00:17.3]} 71. Bd6 {[%clk 0:00:13.2]} 71... Bf5 {[%clk 0:00:18.1]}
72. Bc5 {[%clk 0:00:14.1]} 72... Kd5 {[%clk 0:00:17.9]} 73. Bd6 {[%clk 0:00:15]}
73... Bd7 {[%clk 0:00:18.4]} 74. Bc5 {[%clk 0:00:15.9]} 74... Ke5 {[%clk
0:00:18.4]} 75. Be7 {[%clk 0:00:16.8]} 75... Kf5 {[%clk 0:00:18.5]} 76. Bc5
{[%clk 0:00:17.7]} 76... Kg4 {[%clk 0:00:18.9]} 77. Be7 {[%clk 0:00:18.6]} 77...
Kf3 {[%clk 0:00:18.8]} 78. Bc5 {[%clk 0:00:17.9]} 78... Be6 {[%clk 0:00:19]} 79.
Be3 {[%clk 0:00:18.1]} 79... Bd5 {[%clk 0:00:19.1]} 80. Bc5 {[%clk 0:00:18.3]}
80... Bc4 {[%clk 0:00:19.4]} 81. Be3 {[%clk 0:00:18.5]} 81... Bb5 {[%clk
0:00:20.3]} 82. Bc5 {[%clk 0:00:18.8]} 82... Kg4 {[%clk 0:00:21.2]} 83. Be3
{[%clk 0:00:18.8]} 83... Kf5 {[%clk 0:00:22.1]} 84. Bc5 {[%clk 0:00:19.1]} 84...
g5 {[%clk 0:00:22]} 85. hxg5 {[%clk 0:00:18.3]} 85... Kxg5 {[%clk 0:00:22.9]}
86. Ke3 {[%clk 0:00:18.7]} 86... Kg4 {[%clk 0:00:23.6]} 87. Be7 {[%clk
0:00:18.2]} 87... Ba4 {[%clk 0:00:23.4]} 88. Bc5 {[%clk 0:00:18.1]} 88... Kh3
{[%clk 0:00:23.6]} 89. Be7 {[%clk 0:00:17.5]} 89... Kg2 {[%clk 0:00:23]} 90. Bc5
{[%clk 0:00:16.5]} 90... Kf1 {[%clk 0:00:23]} 91. Kd2 {[%clk 0:00:17]} 91... Bb5
{[%clk 0:00:21.6]} 92. Be3 {[%clk 0:00:17]} 92... Ba4 {[%clk 0:00:21.6]} 93. Bc5
{[%clk 0:00:16.9]} 93... Kg2 {[%clk 0:00:21.7]} 94. Be3 {[%clk 0:00:17]} 94...
Kf3 {[%clk 0:00:22]} 95. Bc5 {[%clk 0:00:17.1]} 95... Bb5 {[%clk 0:00:22.1]} 96.
Be3 {[%clk 0:00:17.2]} 96... Kg4 {[%clk 0:00:22.2]} 97. Bc5 {[%clk 0:00:17.6]}
97... Kf5 {[%clk 0:00:23.1]} 98. Be3 {[%clk 0:00:17.6]} 98... Ke5 {[%clk
0:00:23.3]} 99. Bc5 {[%clk 0:00:18]} 99... Kd5 {[%clk 0:00:24.2]} 100. Be7
{[%clk 0:00:18.1]} 100... Kd4 {[%clk 0:00:23.6]} 101. Bc5+ {[%clk 0:00:18.1]}
101... Kc4 {[%clk 0:00:24]} 102. Be7 {[%clk 0:00:18.4]} 102... Ba4 {[%clk
0:00:24.2]} 103. Bc5 {[%clk 0:00:18.8]} 103... Bc2 {[%clk 0:00:24.2]} 104. Be7
{[%clk 0:00:18.9]} 104... Kd5 {[%clk 0:00:24.2]} 105. Bc5 {[%clk 0:00:19]}
105... Ke6 {[%clk 0:00:25.1]} 106. Bf8 {[%clk 0:00:18.9]} 106... Kf5 {[%clk
0:00:25.2]} 107. Bc5 {[%clk 0:00:19.1]} 107... Bb3 {[%clk 0:00:25.4]} 108. Bd6
{[%clk 0:00:19.3]} 108... Bd5 {[%clk 0:00:26.3]} 109. Bc5 {[%clk 0:00:19.7]}
109... Kg4 {[%clk 0:00:27.2]} 110. Bd6 {[%clk 0:00:19.8]} 110... h4 {[%clk
0:00:26.9]} 111. gxh4 {[%clk 0:00:18.9]} 111... Kxh4 {[%clk 0:00:27.8]} 112. Bc5
{[%clk 0:00:18.6]} 112... Kg4 {[%clk 0:00:28]} 113. Be3 {[%clk 0:00:18.8]}
113... Kf3 {[%clk 0:00:28]} 114. Bc5 {[%clk 0:00:19.1]} 114... Kf4 {[%clk
0:00:28.4]} 115. Be3+ {[%clk 0:00:19.2]} 115... Kf5 {[%clk 0:00:29.3]} 116. Bc5
{[%clk 0:00:19.4]} 116... Ke5 {[%clk 0:00:30.2]} 117. Bf8 {[%clk 0:00:19.1]}
117... Be6 {[%clk 0:00:30.4]} 118. Bc5 {[%clk 0:00:19.3]} 118... Kd5 {[%clk
0:00:31.3]} 119. Be3 {[%clk 0:00:19.3]} 119... Kc4 {[%clk 0:00:31.4]} 120. Bc5
{[%clk 0:00:19.7]} 120... Kb5 {[%clk 0:00:31.2]} 121. Be7 {[%clk 0:00:19.7]}
121... Bd5 {[%clk 0:00:31.5]} 122. Bc5 {[%clk 0:00:19.9]} 122... Ka4 {[%clk
0:00:32]} 123. Be7 {[%clk 0:00:20]} 123... Kb3 {[%clk 0:00:32.9]} 124. Bc5
{[%clk 0:00:20.3]} 124... Kc4 {[%clk 0:00:33.8]} 125. Be7 {[%clk 0:00:20.3]}
125... Be6 {[%clk 0:00:34.7]} 126. Bc5 {[%clk 0:00:20.5]} 126... Kd5 {[%clk
0:00:35.6]} 127. Be7 {[%clk 0:00:20.6]} 127... Bc8 {[%clk 0:00:36.5]} 128. Bc5
{[%clk 0:00:20.8]} 128... Ba6 {[%clk 0:00:37.4]} 129. Be7 {[%clk 0:00:21]}
129... Bb5 {[%clk 0:00:38.3]} 130. Bc5 {[%clk 0:00:21.3]} 130... Ke5 {[%clk
0:00:39.2]} 131. Be7 {[%clk 0:00:21.6]} 131... Kf4 {[%clk 0:00:40.1]} 132. Bc5
{[%clk 0:00:21.9]} 132... Kf3 {[%clk 0:00:41]} 133. Be3 {[%clk 0:00:21.8]}
133... Kg2 {[%clk 0:00:40]} 134. Bc5 {[%clk 0:00:21.8]} 134... Kf1 {[%clk
0:00:40.9]} 135. Be3 {[%clk 0:00:21.9]} 135... Bc4 {[%clk 0:00:40.6]} 136. Bc5
{[%clk 0:00:22]} 136... Kg2 {[%clk 0:00:40.6]} 137. Be3 {[%clk 0:00:22.1]}
137... Kf3 {[%clk 0:00:40.7]} 138. Bc5 {[%clk 0:00:22.5]} 138... Kf4 {[%clk
0:00:41]} 139. Be3+ {[%clk 0:00:21.8]} 139... Ke5 {[%clk 0:00:41.9]} 140. Bc5
{[%clk 0:00:22]} 140... Bb5 {[%clk 0:00:42.8]} 141. Be3 {[%clk 0:00:21]} 141...
Kd5 {[%clk 0:00:43.7]} 142. Bc5 {[%clk 0:00:21.3]} 142... Kc4 {[%clk 0:00:44.6]}
143. Be7 {[%clk 0:00:21.4]} 143... e3+ {[%clk 0:00:42.7]} 144. fxe3 {[%clk
0:00:20.9]} 144... Kd5 {[%clk 0:00:41.9]} 145. Bc5 {[%clk 0:00:16.6]} 145... Ke4
{[%clk 0:00:42.1]} 146. Be7 {[%clk 0:00:16.5]} 146... Kd5 {[%clk 0:00:41.9]}
147. Bc5 {[%clk 0:00:16.8]} 147... Ke6 {[%clk 0:00:41.8]} 148. Bf8 {[%clk
0:00:16.6]} 148... Kf7 {[%clk 0:00:42]} 149. Bc5 {[%clk 0:00:16.8]} 149... Kg6
{[%clk 0:00:42]} 150. Bd6 {[%clk 0:00:16.8]} 150... Kf5 {[%clk 0:00:42.1]} 151.
Bc5 {[%clk 0:00:17]} 151... Ke4 {[%clk 0:00:42.1]} 152. Be7 {[%clk 0:00:16.9]}
152... Kd5 {[%clk 0:00:42]} 1/2-1/2